bitfinex-derivatives/quotes_BTCF0:USTF0_20250806
["timestamp","ask_amount","ask_price","bid_price","bid_amount"]
[1754515527381,0.71898313,115230.0,115220.0,0.83158035]
[1754515527575,1.44058313,115230.0,115220.0,0.83158035]
[1754515528479,1.0136945,115230.0,115220.0,0.83158035]
[1754515528684,1.86747176,115230.0,115220.0,0.83158035]
[1754515530785,1.44058313,115230.0,115220.0,0.83158035]
[1754515531084,0.71898313,115230.0,115220.0,0.83158035]
[1754515531280,1.44058313,115230.0,115220.0,0.83158035]
[1754515541594,1.44058313,115230.0,115220.0,0.7631476]
[1754515544695,1.44058313,115230.0,115220.0,0.1745476]
[1754515544904,1.44058313,115230.0,115220.0,0.7630676]
[1754515555994,1.44058313,115230.0,115220.0,0.1745476]
[1754515556193,1.44058313,115230.0,115220.0,0.58944]
[1754515556398,1.44058313,115230.0,115220.0,0.7629896]
[1754515563709,1.44058313,115230.0,115220.0,0.58944]
[1754515564711,1.86747176,115230.0,115220.0,0.58944]
[1754515566016,1.86747176,115230.0,115220.0,0.001]
[1754515567817,1.86747176,115230.0,115220.0,0.5894]
[1754515568017,1.86747176,115230.0,115220.0,0.001]
[1754515568218,1.86747176,115230.0,115220.0,0.5894]
[1754515571021,1.44058313,115230.0,115220.0,0.5894]
[1754515583433,0.71898313,115230.0,115220.0,0.5894]
[1754515583629,1.44058313,115230.0,115220.0,0.5894]
[1754515590139,1.44058313,115230.0,115220.0,0.6894]
[1754515597635,1.86747176,115230.0,115220.0,0.101]
[1754515597835,1.86747176,115230.0,115220.0,0.68928]
[1754515598941,1.86847176,115230.0,115220.0,0.68928]
[1754515599733,1.86947176,115230.0,115220.0,0.68828]
[1754515601542,1.86947176,115230.0,115220.0,0.75905216]
[1754515605240,1.86947176,115230.0,115220.0,0.17077216]
[1754515605441,1.86947176,115230.0,115220.0,0.75905216]
[1754515609250,1.86947176,115230.0,115220.0,0.17077216]
[1754515609553,1.86947176,115230.0,115220.0,0.75905216]
[1754515619149,1.86947176,115230.0,115220.0,0.65905216]
[1754515621753,1.86947176,115230.0,115220.0,0.07077216]
[1754515621950,0.1992995,115220.0,115210.0,0.46303676]
[1754515622156,1.08369813,115220.0,115210.0,1.57816539]
[1754515622559,1.08369813,115220.0,115210.0,0.98992539]
[1754515622853,1.08369813,115220.0,115210.0,1.57816539]
[1754515623155,1.08369813,115220.0,115210.0,0.98992539]
[1754515623357,1.08369813,115220.0,115210.0,1.37647493]
[1754515625054,1.08369813,115220.0,115210.0,1.44583697]
[1754515625561,1.08369813,115220.0,115210.0,1.01894834]
[1754515626960,1.08369813,115220.0,115210.0,1.2216388]
[1754515628159,1.08369813,115220.0,115210.0,1.01894834]
[1754515628760,1.09234066,115220.0,115210.0,1.01894834]
[1754515630362,1.09234066,115220.0,115210.0,0.93216634]
[1754515631563,1.09234066,115220.0,115210.0,0.34392634]
[1754515631761,1.09234066,115220.0,115210.0,0.93216634]
[1754515633263,1.09234066,115220.0,115210.0,0.75860204]
[1754515633465,1.09234066,115220.0,115210.0,0.93216654]
[1754515637563,1.09234066,115220.0,115210.0,0.75860204]
[1754515637764,1.09234066,115220.0,115210.0,0.93216654]
[1754515638674,1.09234066,115220.0,115210.0,0.93212654]
[1754515638866,1.09234066,115220.0,115210.0,0.8627645]
[1754515640764,1.09234066,115220.0,115210.0,0.6892]
[1754515642170,1.09234066,115220.0,115210.0,0.8627645]
[1754515642572,1.09234066,115220.0,115210.0,0.6892]
[1754515643667,1.09234066,115220.0,115210.0,0.101]
[1754515643873,0.2934945,115210.0,115200.0,0.01771416]
[1754515644173,1.08118313,115210.0,115200.0,0.11771416]
[1754515644376,1.08118313,115210.0,115200.0,0.70591416]
[1754515645071,1.08118313,115210.0,115200.0,0.11771416]
[1754515645277,1.08118313,115210.0,115200.0,0.70591416]
[1754515645872,1.08218313,115210.0,115200.0,0.70591416]
[1754515646070,1.08218313,115210.0,115200.0,0.11771416]
[1754515646471,1.08218313,115210.0,115200.0,0.70591416]
[1754515648377,1.08218313,115210.0,115200.0,0.6882]
[1754515648879,1.08218313,115210.0,115200.0,0.8617784]
[1754515649380,1.08218313,115210.0,115200.0,0.93050075]
[1754515649579,1.08318313,115210.0,115200.0,0.34230075]
[1754515649777,1.08318313,115210.0,115200.0,0.93054075]
[1754515650080,1.08218313,115210.0,115200.0,0.93054075]
[1754515650281,1.08418313,115210.0,115200.0,0.75796235]
[1754515650580,1.08418313,115210.0,115200.0,0.34330095]
[1754515650779,1.08418313,115210.0,115200.0,0.93154095]
[1754515652183,1.08418313,115210.0,115200.0,0.75796235]
[1754515657387,1.08418313,115210.0,115200.0,0.16972235]
[1754515657587,1.08418313,115210.0,115200.0,0.75796235]
[1754515658382,0.72338313,115210.0,115200.0,0.75796235]
[1754515658586,1.44498313,115210.0,115200.0,0.75796235]
[1754515660486,1.44498313,115210.0,115200.0,0.001]
[1754515660684,0.1735939,115190.0,115180.0,0.37907946]
[1754515660985,0.1735939,115190.0,115180.0,1.08520322]
[1754515661190,0.5343939,115190.0,115180.0,1.08520322]
[1754515661494,0.1735939,115190.0,115180.0,1.16442271]
[1754515661701,0.5573639,115190.0,115180.0,1.59147134]
[1754515661993,0.5573639,115190.0,115180.0,1.38978088]
[1754515662289,0.5573639,115190.0,115180.0,1.39078088]
[1754515662495,0.5583639,115190.0,115180.0,1.39078088]
[1754515662795,0.5583639,115190.0,115180.0,1.32012997]
[1754515663890,0.5583639,115190.0,115180.0,1.31912997]
[1754515664194,0.5583639,115190.0,115180.0,1.32168997]
[1754515664794,0.5583639,115190.0,115180.0,0.73172997]
[1754515664994,0.5583639,115190.0,115180.0,1.32068997]
[1754515665290,0.5583639,115190.0,115180.0,0.73172997]
[1754515665494,0.5583639,115190.0,115180.0,1.32064997]
[1754515666593,0.5583639,115190.0,115180.0,1.38983566]
[1754515667196,1.03228253,115190.0,115180.0,0.79234708]
[1754515667392,1.07867253,115190.0,115180.0,1.38991316]
[1754515667697,1.07867253,115190.0,115180.0,1.38130708]
[1754515668297,1.07867253,115190.0,115180.0,0.79234708]
[1754515668498,1.07867253,115190.0,115180.0,1.38130708]
[1754515668993,0.6517839,115190.0,115180.0,1.3899671]
[1754515669193,1.07867253,115190.0,115180.0,0.36545845]
[1754515669390,1.07867253,115190.0,115180.0,0.17396569]
[1754515669594,1.07867253,115190.0,115180.0,0.76296569]
[1754515670597,1.07867253,115190.0,115180.0,0.76316569]
[1754515670797,1.07867253,115190.0,115180.0,0.76312569]
[1754515671400,1.07867253,115190.0,115180.0,0.93673459]
[1754515671794,1.07967253,115190.0,115180.0,0.93573459]
[1754515671995,1.07867253,115190.0,115180.0,0.93473459]
[1754515672294,1.08167253,115190.0,115180.0,0.93573459]
[1754515673202,1.0901934,115190.0,115180.0,0.93573459]
[1754515673904,1.08167253,115190.0,115180.0,0.93573459]
[1754515674100,0.6547839,115190.0,115180.0,0.93573459]
[1754515674402,1.08167253,115190.0,115180.0,0.93573459]
[1754515686515,1.08167253,115190.0,115180.0,0.8665489]
[1754515711338,1.08167253,115190.0,115180.0,0.8665488]
[1754515714641,1.08167253,115190.0,115180.0,0.93534559]
[1754515720351,1.44247253,115190.0,115180.0,0.93534559]
[1754515727457,1.44247253,115190.0,115180.0,0.34618559]
[1754515727657,1.44247253,115190.0,115180.0,0.93494559]
[1754515740362,1.44147253,115190.0,115180.0,0.8661488]
[1754515740566,1.44247253,115190.0,115180.0,0.8661488]
[1754515742162,1.43947253,115190.0,115180.0,0.8651488]
[1754515742461,1.44147253,115190.0,115180.0,0.8661488]
[1754515753468,1.44147253,115190.0,115180.0,0.9352928]
[1754515764079,1.0145839,115190.0,115180.0,0.3465328]
[1754515764379,1.44147253,115190.0,115180.0,0.9354128]
[1754515768879,1.0145839,115190.0,115180.0,0.9354128]
[1754515769080,1.44147253,115190.0,115180.0,0.9354128]
[1754515771483,1.44147253,115190.0,115180.0,0.3465328]
[1754515771689,1.44147253,115190.0,115180.0,0.9365728]
[1754515776989,1.44147253,115190.0,115180.0,0.8674288]
[1754515781088,0.71987253,115190.0,115180.0,0.8674288]
[1754515781295,1.44147253,115190.0,115180.0,0.8674288]
[1754515787098,1.44147253,115190.0,115180.0,0.2773888]
[1754515787292,1.44147253,115190.0,115180.0,0.8669888]
[1754515787498,1.44147253,115190.0,115180.0,0.93479422]
[1754515793006,1.0145839,115190.0,115180.0,0.93479422]
[1754515793301,1.44147253,115190.0,115180.0,0.93479422]
[1754515794607,1.0145839,115190.0,115180.0,0.93479422]
[1754515794904,1.44147253,115190.0,115180.0,0.93479422]
[1754515799013,1.0145839,115190.0,115180.0,0.93479422]
[1754515799214,1.44147253,115190.0,115180.0,0.93479422]
[1754515801419,1.44147253,115190.0,115180.0,0.8669488]
[1754515805821,1.44147253,115190.0,115180.0,0.7669488]
[1754515807122,1.0145839,115190.0,115180.0,0.7669488]
[1754515807318,1.44147253,115190.0,115180.0,0.7669488]
[1754515812122,1.44147253,115190.0,115180.0,0.7668288]
[1754515816918,1.44147253,115190.0,115180.0,0.834702]
[1754515818021,1.44147253,115190.0,115180.0,0.934702]
[1754515833135,1.08067253,115190.0,115180.0,0.934702]
[1754515833327,1.44147253,115190.0,115180.0,0.934702]
[1754515845747,0.71987253,115190.0,115180.0,0.934702]
[1754515845944,1.44147253,115190.0,115180.0,0.934702]
[1754515846141,1.08067253,115190.0,115180.0,0.934702]
[1754515846348,1.44147253,115190.0,115180.0,0.934702]
[1754515847554,1.44147253,115190.0,115180.0,0.935062]
[1754515848351,1.0145839,115190.0,115180.0,0.935062]
[1754515848552,1.44147253,115190.0,115180.0,0.935062]
[1754515857152,1.0145839,115190.0,115180.0,0.935062]
[1754515857342,1.44147253,115190.0,115180.0,0.935062]
[1754515858750,1.0145839,115190.0,115180.0,0.935062]
[1754515859054,1.44147253,115190.0,115180.0,0.935062]
[1754515861657,1.44147253,115190.0,115180.0,0.8671888]
[1754515862060,0.71987253,115190.0,115180.0,0.8671888]
[1754515862259,1.44147253,115190.0,115180.0,0.8671888]
[1754515872569,1.44147253,115190.0,115180.0,0.88445813]
[1754515874166,1.44147253,115190.0,115180.0,0.8671888]
[1754515874765,1.44147253,115190.0,115180.0,0.93539533]
[1754515885980,1.44147253,115190.0,115180.0,0.8671888]
[1754515887478,1.44147253,115190.0,115180.0,0.2773888]
[1754515887680,1.44147253,115190.0,115180.0,0.8669088]
[1754515893476,1.44147253,115190.0,115180.0,0.2773888]
[1754515893681,1.44147253,115190.0,115180.0,0.8674288]
[1754515894689,1.44147253,115190.0,115180.0,0.93717692]
[1754515897387,1.44147253,115190.0,115180.0,0.17352812]
[1754515897592,0.2936837,115170.0,115160.0,0.01736808]
[1754515897786,1.86906096,115170.0,115160.0,0.60732808]
[1754515898089,1.86906096,115170.0,115160.0,0.58996]
[1754515898690,1.86906096,115170.0,115160.0,0.65903964]
[1754515899091,1.87006096,115170.0,115160.0,0.66103964]
[1754515900090,1.87206096,115170.0,115160.0,0.66103964]
[1754515901090,1.44617233,115170.0,115160.0,0.66003964]
[1754515901490,1.87306096,115170.0,115160.0,0.66003964]
[1754515901890,1.87306096,115170.0,115160.0,0.07007964]
[1754515902089,1.87306096,115170.0,115160.0,0.59088]
[1754515905083,1.87306096,115170.0,115150.0,0.08719406]
[1754515905289,1.08097693,115160.0,115150.0,0.70743665]
[1754515905592,1.08097693,115160.0,115150.0,0.60743665]
[1754515906186,0.2933034,115150.0,115140.0,0.1736535]
[1754515906497,0.2933184,115140.0,115130.0,0.2170915]
[1754515906695,1.08100703,115140.0,115130.0,0.59008]
[1754515907195,0.66166479,115140.0,115130.0,0.59008]
[1754515907389,0.66166479,115140.0,115120.0,0.91634366]
[1754515907390,0.2933323,115130.0,115120.0,0.61820635]
[1754515907586,1.08102093,115130.0,115120.0,0.78391772]
[1754515907792,1.08102093,115130.0,115120.0,1.27900686]
[1754515908299,1.08102093,115130.0,115120.0,1.37900686]
[1754515908300,0.6541323,115130.0,115120.0,1.37900686]
[1754515908598,1.08102093,115130.0,115120.0,1.37900686]
[1754515908987,1.08102093,115130.0,115120.0,1.38000686]
[1754515909395,1.08002093,115130.0,115120.0,1.38000686]
[1754515910099,1.08202093,115130.0,115120.0,1.38100686]
[1754515910288,0.6551323,115130.0,115120.0,1.38100686]
[1754515910495,0.02644,115130.0,115120.0,1.38100686]
[1754515910897,0.1756821,115130.0,115120.0,0.93649691]
[1754515911101,0.5609221,115130.0,115120.0,0.94037691]
[1754515911397,0.6561321,115130.0,115120.0,1.36726554]
[1754515911798,1.08302073,115130.0,115120.0,1.26726554]
[1754515912595,1.08302073,115130.0,115120.0,1.09356914]
[1754515912795,1.08302073,115130.0,115120.0,0.67296051]
[1754515913399,1.08302073,115130.0,115120.0,1.09984914]
[1754515913901,0.6561321,115130.0,115120.0,1.09984914]
[1754515914089,1.08302073,115130.0,115120.0,0.49708914]
[1754515914293,1.08302073,115130.0,115120.0,1.09956914]
[1754515914493,1.08302073,115130.0,115120.0,0.67268051]
[1754515914698,1.08302073,115130.0,115120.0,1.09952914]
[1754515914900,0.6561321,115130.0,115120.0,0.67078584]
[1754515915100,0.6561321,115130.0,115120.0,1.27318584]
[1754515915399,1.08302073,115130.0,115120.0,0.67078584]
[1754515915599,0.6561321,115130.0,115120.0,1.27314584]
[1754515916802,0.6561321,115130.0,115120.0,1.37314584]
[1754515917097,0.6561321,115130.0,115120.0,0.102]
[1754515917098,1.08302073,115130.0,115120.0,0.102]
[1754515917302,0.222227,115100.0,115090.0,1.4084021]
[1754515917601,1.08106563,115100.0,115090.0,1.39017019]
[1754515917900,1.08106563,115100.0,115090.0,1.99365019]
[1754515918402,1.08106563,115100.0,115090.0,1.84114]
[1754515918704,1.08206563,115100.0,115090.0,1.84514]
[1754515919400,1.08206563,115100.0,115090.0,1.84314]
[1754515919608,1.08206563,115100.0,115090.0,1.23966]
[1754515919798,1.08206563,115100.0,115090.0,1.84314]
[1754515920105,1.08206563,115100.0,115090.0,1.84214]
[1754515920405,0.655177,115100.0,115090.0,1.84214]
[1754515920596,1.08206563,115100.0,115090.0,1.84214]
[1754515920803,1.03575823,115100.0,115090.0,2.0158821]
[1754515922001,1.03575823,115100.0,115090.0,1.4124021]
[1754515922303,1.03575823,115100.0,115090.0,2.0155221]
[1754515923097,1.03675823,115100.0,115090.0,2.0145221]
[1754515923700,1.03675823,115100.0,115090.0,2.0125221]
[1754515923909,0.656177,115100.0,115090.0,2.0332521]
[1754515925407,0.609467,115100.0,115090.0,2.41383333]
[1754515925802,0.656177,115100.0,115090.0,2.0332521]
[1754515928011,0.295377,115100.0,115090.0,2.0332521]
[1754515928908,0.656177,115100.0,115090.0,2.0332521]
[1754515933308,0.583927,115100.0,115090.0,2.0332521]
[1754515933612,0.559807,115100.0,115090.0,2.0332521]
[1754515934015,0.632197,115100.0,115090.0,2.0332521]
[1754515934315,0.653547,115100.0,115090.0,2.0332521]
[1754515935114,0.292747,115100.0,115090.0,2.0332521]
[1754515935316,0.653547,115100.0,115090.0,2.0332521]
[1754515935517,0.653547,115100.0,115090.0,1.4301321]
[1754515935818,0.653547,115100.0,115090.0,2.0329721]
[1754515940423,0.653547,115100.0,115090.0,2.0322921]
[1754515940625,0.653547,115100.0,115090.0,1.4301321]
[1754515940822,1.03412823,115100.0,115090.0,2.0321721]
[1754515942729,1.08166966,115100.0,115090.0,1.4301321]
[1754515942928,1.08166966,115100.0,115090.0,2.0319321]
[1754515943324,1.08166966,115100.0,115090.0,1.4301321]
[1754515943531,1.08166966,115100.0,115090.0,2.0319321]
[1754515943825,1.08266966,115100.0,115090.0,2.0319321]
[1754515944423,1.08066966,115100.0,115090.0,2.0319321]
[1754515944628,1.08266966,115100.0,115090.0,2.0319321]
[1754515944831,1.08266966,115100.0,115090.0,1.25639]
[1754515945019,1.08266966,115100.0,115090.0,1.83742]
[1754515946439,1.08266966,115100.0,115090.0,2.0111622]
[1754515946641,1.08266966,115100.0,115090.0,1.83726]
[1754515948842,1.08266966,115100.0,115090.0,1.20188]
[1754515949035,1.08266966,115100.0,115090.0,1.83772]
[1754515949940,1.08266966,115100.0,115090.0,1.23664]
[1754515950239,1.08266966,115100.0,115090.0,1.8376]
[1754515951341,1.08266966,115100.0,115090.0,1.23664]
[1754515951541,1.08266966,115100.0,115090.0,1.83744]
[1754515952641,1.08066966,115100.0,115090.0,1.83944]
[1754515954447,1.08066966,115100.0,115090.0,1.23864]
[1754515954639,1.07966966,115100.0,115090.0,1.83744]
[1754515954847,1.08066966,115100.0,115090.0,1.83744]
[1754515955445,1.44146966,115100.0,115090.0,1.83744]
[1754515955744,1.013347,115100.0,115090.0,1.83744]
[1754515955947,1.44146966,115100.0,115090.0,1.83744]
[1754515956136,1.44146966,115100.0,115090.0,1.23664]
[1754515956845,1.44146966,115100.0,115090.0,1.83752]
[1754515957439,1.44246966,115100.0,115090.0,1.83752]
[1754515957947,1.44046966,115100.0,115090.0,0.67518]
[1754515958250,1.44246966,115100.0,115090.0,0.0753]
[1754515958547,1.44146966,115100.0,115090.0,0.0743]
[1754515958737,1.44146966,115100.0,115090.0,0.0753]
[1754515958938,1.44146966,115100.0,115090.0,0.67598]
[1754515959334,1.44146966,115100.0,115090.0,0.6759]
[1754515960347,1.44046966,115100.0,115090.0,0.6749]
[1754515960540,1.44146966,115100.0,115090.0,0.6779]
[1754515961342,1.44146966,115100.0,115090.0,0.0773]
[1754515961545,1.44146966,115100.0,115090.0,0.6777]
[1754515964142,1.44146966,115100.0,115090.0,0.0773]
[1754515964448,1.44146966,115100.0,115090.0,0.6777]
[1754515964640,1.44146966,115100.0,115090.0,0.0773]
[1754515964836,0.1737571,115080.0,115070.0,0.46333476]
[1754515965036,1.08464976,115080.0,115070.0,0.62041476]
[1754515965236,1.08464976,115080.0,115070.0,0.57697236]
[1754515965540,0.6565271,115080.0,115070.0,1.16797996]
[1754515965743,1.08464976,115080.0,115070.0,1.16797996]
[1754515966350,1.08464976,115080.0,115070.0,1.16897996]
[1754515967045,1.08464976,115080.0,115070.0,0.99522046]
[1754515967344,1.09337132,115080.0,115070.0,0.99522046]
[1754515967548,1.09337132,115080.0,115070.0,0.99502046]
[1754515967948,1.09337132,115080.0,115070.0,0.99506046]
[1754515968146,1.09437132,115080.0,115070.0,0.79337]
[1754515968654,1.09337132,115080.0,115070.0,0.79237]
[1754515968951,1.09437132,115080.0,115070.0,0.79237]
[1754515969352,1.09437132,115080.0,115070.0,0.99506046]
[1754515969541,0.73357132,115080.0,115070.0,0.54802236]
[1754515969747,1.09437132,115080.0,115070.0,1.14790236]
[1754515970152,1.09437132,115080.0,115070.0,1.16863236]
[1754515970652,1.09437132,115080.0,115070.0,0.9659419]
[1754515973856,1.09437132,115080.0,115070.0,0.3660619]
[1754515974056,1.09437132,115080.0,115070.0,0.9655019]
[1754515974961,1.09437132,115080.0,115070.0,0.9447719]
[1754515975556,1.09437132,115080.0,115070.0,0.9655019]
[1754515976656,1.09437132,115080.0,115070.0,1.16819236]
[1754515977463,1.09437132,115080.0,115070.0,0.56875236]
[1754515977854,1.09437132,115080.0,115070.0,0.9655019]
[1754515978049,1.09437132,115080.0,115070.0,0.3660619]
[1754515978253,1.09437132,115080.0,115070.0,0.9654619]
[1754515978859,1.09437132,115080.0,115070.0,0.3453319]
[1754515979055,1.52249398,115080.0,115070.0,0.9446919]
[1754515979258,1.52249398,115080.0,115070.0,0.77084]
[1754515979458,1.52249398,115080.0,115070.0,0.17156]
[1754515979760,1.52249398,115080.0,115070.0,0.77092]
[1754515980254,1.52249398,115080.0,115070.0,0.77096]
[1754515980661,0.66624866,115080.0,115070.0,0.9447319]
[1754515980859,1.52249398,115080.0,115070.0,0.3453319]
[1754515981058,1.52249398,115080.0,115070.0,0.9446519]
[1754515981256,1.52249398,115080.0,115070.0,0.77088]
[1754515982062,1.52249398,115080.0,115070.0,0.17156]
[1754515982456,1.52249398,115080.0,115070.0,0.77112]
[1754515984265,1.52249398,115080.0,115070.0,0.17156]
[1754515984668,1.52249398,115080.0,115070.0,0.77092]
[1754515986067,1.52249398,115080.0,115070.0,0.101]
[1754515986364,1.52249398,115080.0,115070.0,0.70036]
[1754515986766,1.52249398,115080.0,115070.0,0.101]
[1754515986968,1.52249398,115080.0,115070.0,0.70024]
[1754515987365,1.52249398,115080.0,115070.0,0.7708]
[1754515988969,1.52249398,115080.0,115050.0,0.80197046]
[1754515988970,0.295757,115060.0,115050.0,0.80197046]
[1754515989162,1.44547966,115060.0,115050.0,0.80197046]
[1754515989965,1.44547966,115060.0,115050.0,0.59928]
[1754515990261,1.44547966,115060.0,115050.0,0.64913]
[1754515990461,1.44647966,115060.0,115050.0,0.8458721]
[1754515991172,1.44647966,115060.0,115050.0,0.67207]
[1754515991470,1.44647966,115060.0,115050.0,0.8458721]
[1754515992275,0.1968324,115030.0,115020.0,0.2678903]
[1754515992475,0.6054624,115030.0,115020.0,1.41654296]
[1754515992966,0.6054624,115030.0,115020.0,0.81674296]
[1754515993163,1.06599506,115030.0,115020.0,1.41650296]
[1754515993667,1.06799506,115030.0,115020.0,1.41650296]
[1754515993865,1.06799506,115030.0,115020.0,0.81674296]
[1754515994064,1.08253506,115030.0,115020.0,1.41650296]
[1754515994461,1.08253506,115030.0,115020.0,0.9883803]
[1754515994668,0.6544124,115030.0,115020.0,0.9883803]
[1754515995172,0.6544124,115030.0,115020.0,0.9923803]
[1754515995674,0.6534124,115030.0,115020.0,0.9923803]
[1754515995875,0.6534124,115030.0,115020.0,0.9893803]
[1754515996176,0.6534124,115030.0,115020.0,0.9891003]
[1754515998871,0.1978324,115030.0,115020.0,0.9891003]
[1754515999068,0.2456624,115030.0,115020.0,0.9904603]
[1754515999264,0.2602024,115030.0,115020.0,0.9904603]
[1754515999668,0.08637,115030.0,115020.0,1.3512603]
[1754515999876,0.001,115030.0,115020.0,1.7322421]
[1754516000266,0.1968134,115050.0,115040.0,0.2885971]
[1754516000473,0.1968134,115050.0,115040.0,0.8892771]
[1754516000771,0.2770534,115050.0,115040.0,0.8892771]
[1754516001072,0.2915934,115050.0,115040.0,0.8892771]
[1754516001273,0.2925934,115050.0,115040.0,0.8892771]
[1754516001771,0.2456319,115050.0,115040.0,0.8892771]
[1754516001973,0.12078,115050.0,115040.0,0.8892771]
[1754516002280,0.12078,115050.0,115040.0,0.9892771]
[1754516002664,0.12078,115050.0,115040.0,1.3500771]
[1754516002665,0.11978,115050.0,115040.0,1.3500771]
[1754516002975,0.11878,115050.0,115040.0,1.3510771]
[1754516003575,0.2925819,115050.0,115040.0,1.3510771]
[1754516004378,0.11878,115050.0,115040.0,1.3510771]
[1754516004677,0.2925819,115050.0,115040.0,1.3510771]
[1754516004880,0.2925819,115050.0,115040.0,1.3520771]
[1754516005081,0.2925819,115050.0,115040.0,1.3530771]
[1754516008675,0.1748019,115050.0,115040.0,1.3530771]
[1754516008981,0.1978019,115050.0,115040.0,1.3530771]
[1754516009280,0.2144319,115050.0,115040.0,1.3530771]
[1754516009481,0.2564519,115050.0,115040.0,1.3530771]
[1754516009991,0.2925819,115050.0,115040.0,1.3530771]
[1754516010280,0.2456319,115050.0,115040.0,1.3530771]
[1754516010480,0.2456319,115050.0,115040.0,1.7340589]
[1754516011184,0.2456319,115050.0,115040.0,1.3530771]
[1754516011572,0.001,115050.0,115040.0,1.7340589]
[1754516015389,0.001,115050.0,115040.0,1.3530771]
[1754516015592,0.001,115050.0,115040.0,1.7340589]
[1754516018791,0.001,115050.0,115040.0,1.78141443]
[1754516022292,0.02575,115050.0,115040.0,1.78141443]
[1754516026894,0.001,115050.0,115040.0,1.78141443]
[1754516027888,0.001,115050.0,115040.0,1.3530771]
[1754516028091,0.02575,115050.0,115040.0,1.78141443]
[1754516028593,0.54820733,115050.0,115040.0,1.78105443]
[1754516028995,0.53417733,115050.0,115040.0,1.78105443]
[1754516029191,0.10584,115050.0,115040.0,1.78105443]
[1754516029590,0.07173,115050.0,115040.0,1.78105443]
[1754516035598,0.02575,115050.0,115040.0,1.78105443]
[1754516035997,0.02575,115050.0,115040.0,1.3527171]
[1754516036197,0.1995513,115050.0,115040.0,1.42025443]
[1754516036601,0.02575,115050.0,115040.0,1.42025443]
[1754516038596,0.02575,115050.0,115040.0,0.9919171]
[1754516038797,0.02575,115050.0,115040.0,1.42025443]
[1754516040212,0.1995531,115050.0,115040.0,1.42025443]
[1754516041209,0.2336631,115050.0,115040.0,1.42025443]
[1754516042813,0.1995531,115050.0,115040.0,1.42025443]
[1754516045503,0.02575,115050.0,115040.0,1.42025443]
[1754516045707,0.02575,115050.0,115040.0,1.78105443]
[1754516048216,0.02575,115050.0,115040.0,1.98374489]
[1754516054131,0.02575,115050.0,115040.0,1.78105443]
[1754516055428,0.02575,115050.0,115040.0,1.3527171]
[1754516055731,0.02575,115050.0,115040.0,1.78105443]
[1754516056525,0.001,115050.0,115040.0,1.42025443]
[1754516057327,0.02422,115050.0,115040.0,1.42025443]
[1754516057528,0.02422,115050.0,115040.0,0.81993443]
[1754516057730,0.72224883,115050.0,115040.0,1.41857443]
[1754516057923,0.2939115,115050.0,115040.0,1.41857443]
[1754516058424,0.72224883,115050.0,115040.0,1.41857443]
[1754516059234,0.2939115,115050.0,115040.0,1.41857443]
[1754516060932,0.72224883,115050.0,115040.0,1.41857443]
[1754516061534,0.2939115,115050.0,115040.0,1.41857443]
[1754516061833,0.72224883,115050.0,115040.0,1.41857443]
[1754516063134,0.2939115,115050.0,115040.0,1.41857443]
[1754516063731,0.2791415,115050.0,115040.0,1.41857443]
[1754516063930,0.10534,115050.0,115040.0,1.41857443]
[1754516064130,0.0494,115050.0,115040.0,1.41857443]
[1754516065636,0.0494,115050.0,115040.0,1.77937443]
[1754516067037,0.0494,115050.0,115040.0,1.3510371]
[1754516067335,0.0494,115050.0,115040.0,1.77937443]
[1754516068336,0.04031,115050.0,115040.0,1.77937443]
[1754516068536,0.02422,115050.0,115040.0,1.77937443]
[1754516069236,0.02422,115050.0,115040.0,1.41857443]
[1754516071941,0.02422,115050.0,115040.0,1.62194841]
[1754516076442,0.02422,115050.0,115040.0,1.19361108]
[1754516076641,0.02422,115050.0,115040.0,1.62194841]
[1754516080249,0.02422,115050.0,115040.0,1.02330841]
[1754516080441,0.02422,115050.0,115040.0,1.62038841]
[1754516081642,0.02422,115050.0,115040.0,1.41701443]
[1754516083152,0.1980213,115050.0,115040.0,1.41701443]
[1754516087954,0.02422,115050.0,115040.0,1.41701443]
[1754516088655,0.1980214,115050.0,115040.0,1.41701443]
[1754516089156,0.1980214,115050.0,115040.0,1.48698647]
[1754516090155,0.1980214,115050.0,115040.0,1.69036045]
[1754516091453,0.001,115050.0,115040.0,1.69036045]
[1754516091653,0.001,115050.0,115040.0,2.11869778]
[1754516091861,0.6021829,115060.0,115050.0,0.2875414]
[1754516092057,1.08771023,115060.0,115050.0,0.71587873]
[1754516092258,1.10230023,115060.0,115050.0,0.71587873]
[1754516092457,1.10230023,115060.0,115050.0,0.91925271]
[1754516093360,1.10230023,115060.0,115050.0,0.49091538]
[1754516093561,1.10230023,115060.0,115050.0,0.91925271]
[1754516093761,1.05568023,115060.0,115050.0,0.89852271]
[1754516093962,1.10330023,115060.0,115050.0,0.90152271]
[1754516094154,1.10330023,115060.0,115050.0,0.92225271]
[1754516094354,1.12485023,115060.0,115050.0,0.92225271]
[1754516094962,1.12485023,115060.0,115050.0,1.52485271]
[1754516095263,1.12485023,115060.0,115050.0,1.09651538]
[1754516095462,1.12485023,115060.0,115050.0,0.92225271]
[1754516095664,1.12485023,115060.0,115050.0,1.52477271]
[1754516096162,1.12485023,115060.0,115050.0,1.32139873]
[1754516099772,0.6965129,115060.0,115050.0,1.32139873]
[1754516099961,1.12485023,115060.0,115050.0,1.32139873]
[1754516100464,1.08140373,115060.0,115050.0,1.32139873]
[1754516101568,0.47927,115060.0,115050.0,1.32139873]
[1754516103267,0.90760733,115060.0,115050.0,1.32139873]
[1754516104071,0.90760733,115060.0,115050.0,1.33029976]
[1754516104665,0.90760733,115060.0,115050.0,0.72777976]
[1754516104872,0.90760733,115060.0,115050.0,1.32941976]
[1754516105771,0.90760733,115060.0,115050.0,1.53279374]
[1754516106172,0.47927,115060.0,115050.0,1.53279374]
[1754516106671,0.90760733,115060.0,115050.0,1.53279374]
[1754516108668,0.90760733,115060.0,115050.0,1.09555538]
[1754516108873,1.08139373,115060.0,115050.0,1.52389271]
[1754516111776,0.90760733,115060.0,115050.0,1.52389271]
[1754516112680,0.90760733,115060.0,115050.0,1.53262041]
[1754516113381,0.90760733,115060.0,115050.0,1.52389271]
[1754516113382,1.08139373,115060.0,115050.0,1.52389271]
[1754516113678,1.08139373,115060.0,115050.0,1.59368491]
[1754516114275,0.90760733,115060.0,115050.0,1.59368491]
[1754516115082,1.08139373,115060.0,115050.0,1.59368491]
[1754516118887,0.90760733,115060.0,115050.0,1.59368491]
[1754516120190,0.90760733,115060.0,115050.0,1.16534758]
[1754516120484,0.90760733,115060.0,115050.0,1.59368491]
[1754516121587,0.90760733,115060.0,115050.0,1.16534758]
[1754516121782,0.90760733,115060.0,115050.0,1.59368491]
[1754516122981,0.90760733,115060.0,115050.0,1.16534758]
[1754516123189,0.90760733,115060.0,115050.0,1.59368491]
[1754516124487,1.08139373,115060.0,115050.0,1.59368491]
[1754516125486,1.08139373,115060.0,115050.0,1.75015677]
[1754516126282,1.08139373,115060.0,115050.0,1.14851677]
[1754516126489,1.08139373,115060.0,115050.0,1.54478279]